[Event "DEN-chT XtraCon 2018-19"]
[Site "Denmark"]
[Date "2018.10.27"]
[Round "1"]
[White "Sorensen, Jan"]
[Black "Kristensen, Bjarke Hautop"]
[Result "0-1"]
[ECO "A45"]
[WhiteElo "2406"]
[BlackElo "2207"]
[Annotator "NA"]
[PlyCount "152"]
[EventDate "2018.10.27"]
[EventType "team-tourn"]
[EventCountry "DEN"]
[SourceTitle "playchess.com"]
[Source "ChessBase"]
[SourceQuality "1"]
[TimeControl "40/5400+30:1800+30"]

1. d4 {[%emt 0:00:00]} Nf6 {[%emt 0:00:00]} 2. Bg5 {[%emt 0:00:00]} d5 {[%emt 0:00:00]} 3. Bxf6 {[%emt 0:00:12]} exf6 {[%emt 0:00:16]} 4. e3 {[%emt 0:00:18]} Be6 {[%emt 0:02:31]} 5. g3 {[%emt 0:00:59]} Bd6 {[%emt 0:00:38]} 6. Bg2 {[%emt 0:00:08]} c6 {[%emt 0:00:04]} 7. Ne2 {[%emt 0:00:13]} O-O {[%emt 0:00:11]} 8. O-O {[%emt 0:00:56]} Nd7 {[%emt 0:00:39]} 9. b3 {[%emt 0:01:05]} f5 {[%emt 0:01:12]} 10. Nd2 {[%emt 0:03:05]} Nf6 {[%emt 0:00:20]} 11. c4 {[%emt 0:02:04]} Ne4 {[%emt 0:00:52]} 12. Rb1 {[%emt 0:29:58]} Qd7 {[%emt 0:10:49]} 13. c5 {[%emt 0:11:17]} Bc7 {[%emt 0:02:45]} 14. b4 {[%emt 0:00:19]} b5 {[%emt 0:01:24]} 15. a4 {[%emt 0:18:46]} a6 {[%emt 0:03:11]} 16. Ra1 {[%emt 0:05:10]} h6 {[%emt 0:09:52]} 17. Qc2 {[%emt 0:00:33]} g5 {[%emt 0:01:46]} 18. Ra3 {[%emt 0:01:55]} Rae8 {[%emt 0:02:24]} 19. axb5 {[%emt 0:00:41]} axb5 {[%emt 0:00:01]} 20. Ra6 {[%emt 0:02:51]} Ra8 {[%emt 0:10:09]} 21. Rfa1 {[%emt 0:00:23]} Rxa6 {[%emt 0:00:04]} 22. Rxa6 {[%emt 0:00:02]} Re8 {[%emt 0:02:21]} 23. Nf3 {[%emt 0:01:56]} f4 {[%emt 0:16:22]} 24. exf4 {[%emt 0:05:24]} Bf5 {[%emt 0:04:52]} 25. Qc1 {[%emt 0:04:11]} f6 {[%emt 0:03:25]} 26. Ra7 {[%emt 0:02:26]} Bxf4 {[%emt 0:02:56]} 27. Rxd7 {[%emt 0:03:19]} Bxc1 {[%emt 0:00:01]} 28. Rc7 {[%emt 0:02:46]} Ba3 {[%emt 0:03:49]} 29. Rxc6 {[%emt 0:00:45]} Bxb4 {[%emt 0:01:15]} 30. h3 {[%emt 0:00:36]} Ba3 {[%emt 0:06:09]} 31. g4 {[%emt 0:00:05]} Bg6 {[%emt 0:00:24]} 32. Rb6 {[%emt 0:00:14]} b4 {[%emt 0:01:14]} 33. Ne5 fxe5 {[%emt 0:03:10]} 34. Rxg6+ {[%emt 0:02:06]} Kh7 {[%emt 0:00:03]} 35. Rb6 {[%emt 0:00:26]} exd4 {[%emt 0:00:12]} 36. Nxd4 {[%emt 0:00:25]} Nxc5 {[%emt 0:00:05]} 37. Rb5 {[%emt 0:01:43]} Re1+ {[%emt 0:03:37]} 38. Kh2 {[%emt 0:01:01]} Bb2 {[%emt 0:00:02]} 39. Nf3 {[%emt 0:00:24]} Rc1 {[%emt 0:01:10]} 40. Rxb4 {[%emt 0:00:25]} Rc2 {[%emt 0:03:27]} 41. Rb5 {[%emt 0:16:01]} Bf6 {[%emt 0:17:56]} 42. Rb6 {[%emt 0:01:33]} Ne4 {[%emt 0:00:05]} 43. Rb7+ {[%emt 0:00:20]} Kg6 {[%emt 0:00:48]} 44. Rd7 {[%emt 0:01:04]} Nc3 {[%emt 0:06:16]} 45. h4 {[%emt 0:11:40]} gxh4 {[%emt 0:00:21]} 46. Kh3 {[%emt 0:00:50]} Rxf2 {[%emt 0:01:37]} 47. Nxh4+ {[%emt 0:02:18]} Bxh4 {[%emt 0:00:26]} 48. Bxd5 {[%emt 0:00:02]} Nxd5 {[%emt 0:04:56]} 49. Rxd5 {[%emt 0:00:06]} Bf6 {[%emt 0:00:10]} 50. Rf5 {[%emt 0:00:22]} Ra2 {[%emt 0:00:20]} 51. Kg3 {[%emt 0:00:11]} Ra3+ {[%emt 0:00:21]} 52. Kg2 {[%emt 0:01:04]} Bg5 {[%emt 0:00:18]} 53. Rb5 {[%emt 0:00:14]} Bf4 {[%emt 0:02:02]} 54. Kf2 {[%emt 0:01:24]} Rg3 {[%emt 0:00:50]} 55. Ra5 {[%emt 0:00:19]} Rxg4 {[%emt 0:01:05]} 56. Kf3 {[%emt 0:00:05]} h5 {[%emt 0:00:33]} 57. Ra4 {[%emt 0:00:34]} Kf5 {[%emt 0:00:23]} 58. Ra7 {[%emt 0:00:25]} Be5 {[%emt 0:01:11]} 59. Rh7 {[%emt 0:00:14]} Kg6 {[%emt 0:00:49]} 60. Re7 {[%emt 0:00:14]} Bf6 {[%emt 0:00:04]} 61. Rb7 {[%emt 0:00:17]} Ra4 {[%emt 0:00:23]} 62. Rb5 {[%emt 0:00:13]} h4 {[%emt 0:00:30]} 63. Kg2 {[%emt 0:00:14]} Ra3 {[%emt 0:00:15]} 64. Kh2 {[%emt 0:00:44]} Bg5 {[%emt 0:00:08]} 65. Kh1 {[%emt 0:00:53]} Ra4 {[%emt 0:00:49]} 66. Kg2 {[%emt 0:00:26]} Kh5 {[%emt 0:00:01]} 67. Rb1 {[%emt 0:00:42]} Kg4 {[%emt 0:00:12]} 68. Kh1 {[%emt 0:00:14]} Ra2 {[%emt 0:01:13]} 69. Rg1+ {[%emt 0:00:07]} Kf5 {[%emt 0:00:27]} 70. Rb1 {[%emt 0:00:18]} Bf4 {[%emt 0:00:16]} 71. Rb3 {[%emt 0:01:49]} Kg4 {[%emt 0:00:24]} 72. Rb1 {[%emt 0:00:15]} Kh3 {[%emt 0:00:40]} 73. Re1 {[%emt 0:00:32]} Bg3 {[%emt 0:00:49]} 74. Rf1 {[%emt 0:00:14]} Rh2+ {[%emt 0:00:52]} 75. Kg1 {[%emt 0:00:03]} Rg2+ {[%emt 0:00:04]} 76. Kh1 {[%emt 0:00:01]} Bf2 {[%emt 0:00:13]} 0-1

[Event "DEN-chT XtraCon 2018-19"]
[Site "Denmark"]
[Date "2018.10.27"]
[Round "1"]
[White "Teplyi, Igor"]
[Black "Hansen, Sune Berg"]
[Result "1/2-1/2"]
[ECO "E32"]
[WhiteElo "2404"]
[BlackElo "2581"]
[Annotator "ChessBase"]
[PlyCount "76"]
[EventDate "2018.10.27"]
[EventType "team-tourn"]
[EventCountry "DEN"]
[SourceTitle "playchess.com"]
[Source "ChessBase"]
[SourceQuality "1"]
[TimeControl "40/5400+30:1800+30"]

1. d4 {[%emt 0:02:34]} Nf6 {[%emt 0:00:05]} 2. c4 {[%emt 0:00:06]} e6 {[%emt 0:00:20]} 3. Nc3 {[%emt 0:00:58]} Bb4 {[%emt 0:00:20]} 4. Qc2 {[%emt 0:00:06]} d6 {[%emt 0:01:08]} 5. Nf3 {[%emt 0:00:44]} c5 {[%emt 0:05:39]} 6. a3 {[%emt 0:06:13]} Bxc3+ {[%emt 0:04:09]} 7. Qxc3 {[%emt 0:00:07]} cxd4 {[%emt 0:00:51]} 8. Qxd4 {[%emt 0:05:37]} Nc6 {[%emt 0:03:20]} 9. Qd1 {[%emt 0:00:44]} O-O {[%emt 0:03:22]} 10. e3 {[%emt 0:00:40]} a5 {[%emt 0:02:08]} 11. Be2 {[%emt 0:03:29]} e5 {[%emt 0:01:02]} 12. O-O {[%emt 0:00:50]} Bf5 {[%emt 0:03:35]} 13. b3 {[%emt 0:04:27]} Qe7 {[%emt 0:05:25]} 14. Bb2 {[%emt 0:02:15]} Rfd8 {[%emt 0:09:36]} 15. Qe1 {[%emt 0:07:13]} Nd7 {[%emt 0:07:09]} 16. b4 {[%emt 0:08:57]} Rdc8 {[%emt 0:03:20]} 17. Bc3 {[%emt 0:14:56]} Nb6 {[%emt 0:05:02]} 18. c5 {[%emt 0:25:48]} axb4 {[%emt 0:02:40]} 19. cxd6 {[%emt 0:02:36]} Qxd6 {[%emt 0:01:34]} 20. axb4 {[%emt 0:00:07]} f6 {[%emt 0:03:48]} 21. b5 {[%emt 0:00:29]} Ne7 {[%emt 0:02:39]} 22. Rxa8 {[%emt 0:00:21]} Rxa8 {[%emt 0:00:50]} 23. Bb4 {[%emt 0:00:32]} Qd7 {[%emt 0:03:07]} 24. Bc5 {[%emt 0:04:35]} Ned5 {[%emt 0:08:01]} 25. Nh4 {[%emt 0:01:33]} Na4 {[%emt 0:04:21]} 26. Nxf5 {[%emt 0:01:11]} Nxc5 {[%emt 0:02:00]} 27. Bc4 {[%emt 0:00:58]} Kh8 {[%emt 0:00:36]} 28. Qd2 {[%emt 0:03:25]} Rd8 {[%emt 0:03:25]} 29. Qxd5 {[%emt 0:00:56]} Qxd5 {[%emt 0:00:05]} 30. Bxd5 {[%emt 0:00:03]} Rxd5 {[%emt 0:00:14]} 31. Ra1 {[%emt 0:00:30]} h6 {[%emt 0:01:30]} 32. h4 {[%emt 0:00:09]} h5 {[%emt 0:00:49]} 33. Ra8+ {[%emt 0:00:32]} Kh7 {[%emt 0:05:55]} 34. Rc8 {[%emt 0:00:04]} b6 {[%emt 0:01:41]} 35. Rc6 {[%emt 0:00:20]} Nd7 {[%emt 0:02:15]} 36. Rd6 {[%emt 0:00:29]} Rxd6 {[%emt 0:00:23]} 37. Nxd6 {[%emt 0:00:05]} Kg6 {[%emt 0:00:19]} 38. e4 {[%emt 0:00:14]} Nc5 {[%emt 0:00:23]} 1/2-1/2

[Event "DEN-chT XtraCon 2018-19"]
[Site "Denmark"]
[Date "2018.10.27"]
[Round "1"]
[White "Percivaldi, Martin"]
[Black "Petersen, Steen"]
[Result "1-0"]
[ECO "A06"]
[WhiteElo "2390"]
[BlackElo "2131"]
[Annotator "NA"]
[PlyCount "59"]
[EventDate "2018.10.27"]
[EventType "team-tourn"]
[EventCountry "DEN"]
[SourceTitle "playchess.com"]
[Source "ChessBase"]
[SourceQuality "1"]
[TimeControl "40/5400+30:1800+30"]

1. Nf3 {[%emt 0:00:00]} d5 {[%emt 0:00:00]} 2. g3 {[%emt 0:00:00]} Bg4 {[%emt 0:00:14]} 3. Bg2 {[%emt 0:00:00]} Nd7 {[%emt 0:00:24]} 4. h3 {[%emt 0:00:28]} Bh5 {[%emt 0:01:00]} 5. d3 {[%emt 0:00:33]} c6 {[%emt 0:05:05]} 6. O-O {[%emt 0:00:46]} e5 {[%emt 0:07:01]} 7. Nbd2 {[%emt 0:00:19]} Bc5 {[%emt 0:01:22]} 8. e4 {[%emt 0:01:13]} f6 {[%emt 0:00:58]} 9. c3 {[%emt 0:04:30]} Bb6 {[%emt 0:07:19]} 10. d4 {[%emt 0:10:41]} Ne7 {[%emt 0:08:05]} 11. g4 {[%emt 0:10:03]} Bg6 {[%emt 0:07:02]} 12. Qe2 {[%emt 0:04:05]} Qc7 {[%emt 0:10:32]} 13. dxe5 {[%emt 0:16:33]} O-O-O {[%emt 0:05:05]} 14. Nd4 {[%emt 0:04:36]} Bxd4 {[%emt 0:07:18]} 15. cxd4 {[%emt 0:00:08]} fxe5 {[%emt 0:00:05]} 16. dxe5 {[%emt 0:01:45]} dxe4 {[%emt 0:01:48]} 17. Nxe4 {[%emt 0:09:44]} Nxe5 {[%emt 0:11:26]} 18. Bf4 {[%emt 0:01:26]} Nd5 {[%emt 0:00:02]} 19. Bg3 {[%emt 0:00:21]} Qe7 {[%emt 0:00:50]} 20. Rae1 {[%emt 0:07:45]} Rhe8 {[%emt 0:06:19]} 21. f4 {[%emt 0:01:10]} Bxe4 {[%emt 0:00:12]} 22. Qxe4 {[%emt 0:00:43]} Ng6 {[%emt 0:02:12]} 23. Qd4 {[%emt 0:06:01]} Qb4 {[%emt 0:03:13]} 24. Qxa7 {[%emt 0:02:58]} Rxe1 {[%emt 0:05:47]} 25. Bxe1 {[%emt 0:01:19]} Qxb2 {[%emt 0:03:01]} 26. Ba5 {[%emt 0:00:26]} Re8 {[%emt 0:00:02]} 27. Bxd5 {[%emt 0:00:40]} cxd5 {[%emt 0:01:38]} 28. Qc5+ {[%emt 0:00:07]} Kb8 {[%emt 0:01:00]} 29. Bc7+ {[%emt 0:00:08]} Ka8 {[%emt 0:00:08]} 30. Qa5# {[%emt 0:00:08]} 1-0

[Event "DEN-chT XtraCon 2018-19"]
[Site "Denmark"]
[Date "2018.10.27"]
[Round "1"]
[White "Borge, Nikolaj"]
[Black "Matthiesen, Martin"]
[Result "1/2-1/2"]
[ECO "C44"]
[WhiteElo "2385"]
[BlackElo "2286"]
[Annotator "NA"]
[PlyCount "167"]
[EventDate "2018.10.27"]
[EventType "team-tourn"]
[EventCountry "DEN"]
[SourceTitle "playchess.com"]
[Source "ChessBase"]
[SourceQuality "1"]
[TimeControl "40/5400+30:1800+30"]

1. e4 {[%emt 0:00:00]} e5 {[%emt 0:00:00]} 2. Nf3 {[%emt 0:00:00]} Nc6 {[%emt 0:00:00]} 3. d4 {[%emt 0:04:41]} exd4 {[%emt 0:00:11]} 4. Nxd4 {[%emt 0:00:02]} g6 {[%emt 0:04:10]} 5. Nxc6 {[%emt 0:09:03]} bxc6 {[%emt 0:00:41]} 6. h4 {[%emt 0:05:48]} h6 {[%emt 0:18:49]} 7. Be3 {[%emt 0:09:54]} Bg7 {[%emt 0:02:49]} 8. Bd4 {[%emt 0:01:05]} Nf6 {[%emt 0:04:40]} 9. e5 {[%emt 0:15:00]} Nd5 {[%emt 0:02:31]} 10. c4 {[%emt 0:04:10]} Ne7 {[%emt 0:08:47]} 11. e6 {[%emt 0:07:52]} Bxd4 {[%emt 0:07:02]} 12. Qxd4 {[%emt 0:03:03]} O-O {[%emt 0:00:13]} 13. exf7+ {[%emt 0:03:50]} Rxf7 {[%emt 0:00:32]} 14. Nc3 {[%emt 0:03:09]} Nf5 {[%emt 0:11:12]} 15. Qd2 {[%emt 0:02:42]} Qe7+ {[%emt 0:21:26]} 16. Be2 {[%emt 0:01:24]} Rb8 {[%emt 0:05:46]} 17. O-O-O {[%emt 0:11:41]} Qb4 {[%emt 0:01:37]} 18. Qc2 {[%emt 0:04:09]} Ba6 {[%emt 0:02:15]} 19. g4 {[%emt 0:01:59]} Nd6 {[%emt 0:03:14]} 20. a3 {[%emt 0:02:31]} Qb3 {[%emt 0:01:03]} 21. Qxg6+ {[%emt 0:04:36]} Rg7 {[%emt 0:00:10]} 22. Qc2 {[%emt 0:00:01]} Qxc2+ {[%emt 0:00:54]} 23. Kxc2 {[%emt 0:00:03]} Bxc4 {[%emt 0:00:19]} 24. Rd4 {[%emt 0:01:10]} Bxe2 {[%emt 0:00:54]} 25. Nxe2 {[%emt 0:00:01]} Rf8 {[%emt 0:00:23]} 26. Rh2 {[%emt 0:00:40]} Rf3 {[%emt 0:00:44]} 27. Ng3 {[%emt 0:01:25]} Rgf7 {[%emt 0:01:47]} 28. Rd2 {[%emt 0:00:34]} R7f4 {[%emt 0:00:30]} 29. g5 {[%emt 0:00:34]} hxg5 {[%emt 0:00:25]} 30. hxg5 {[%emt 0:00:01]} Rg4 {[%emt 0:00:39]} 31. Rh5 {[%emt 0:01:32]} Nf7 {[%emt 0:00:41]} 32. g6 {[%emt 0:00:48]} Rxg6 {[%emt 0:00:43]} 33. Nf5 {[%emt 0:00:06]} Rf6 {[%emt 0:00:24]} 34. Ne7+ {[%emt 0:00:32]} Kf8 {[%emt 0:00:25]} 35. Rxd7 {[%emt 0:00:10]} Rxf2+ {[%emt 0:00:11]} 36. Kb3 {[%emt 0:00:09]} c5 {[%emt 0:00:43]} 37. Nd5 {[%emt 0:01:14]} R6f3+ {[%emt 0:00:21]} 38. Ka2 {[%emt 0:01:50]} c6 {[%emt 0:00:56]} 39. Nc7 {[%emt 0:00:33]} c4 {[%emt 0:00:35]} 40. Ne6+ {[%emt 0:01:09]} Ke8 {[%emt 0:00:20]} 41. Rc7 {[%emt 0:08:55]} Re3 {[%emt 0:05:14]} 42. Ng7+ {[%emt 0:01:39]} Kd8 {[%emt 0:08:17]} 43. Rxc6 {[%emt 0:02:45]} Ne5 {[%emt 0:12:31]} 44. Rd6+ {[%emt 0:01:14]} Kc7 {[%emt 0:01:07]} 45. Ne8+ {[%emt 0:03:09]} Kc8 {[%emt 0:01:27]} 46. Rh7 {[%emt 0:06:55]} Nf7 {[%emt 0:00:39]} 47. Rf6 {[%emt 0:04:41]} Rxf6 {[%emt 0:00:19]} 48. Nxf6 {[%emt 0:00:02]} Nd6 {[%emt 0:01:16]} 49. Rxa7 {[%emt 0:01:18]} Nb5 {[%emt 0:03:02]} 50. Nd5 {[%emt 0:02:45]} Rd3 {[%emt 0:01:00]} 51. Ne7+ {[%emt 0:01:30]} Kd8 {[%emt 0:00:13]} 52. Nc6+ {[%emt 0:00:03]} Kc8 {[%emt 0:01:00]} 53. Ne7+ {[%emt 0:00:02]} Kd8 {[%emt 0:00:06]} 54. Nc6+ {[%emt 0:00:02]} Kc8 {[%emt 0:00:06]} 55. Ra5 {[%emt 0:00:30]} Nd6 {[%emt 0:00:51]} 56. Ne5 {[%emt 0:01:30]} Rd4 {[%emt 0:00:01]} 57. Rc5+ {[%emt 0:00:38]} Kb7 {[%emt 0:00:32]} 58. a4 {[%emt 0:00:15]} c3 {[%emt 0:01:20]} 59. bxc3 {[%emt 0:01:41]} Rxa4+ {[%emt 0:00:03]} 60. Kb3 {[%emt 0:00:01]} Rh4 {[%emt 0:00:32]} 61. Rd5 {[%emt 0:00:16]} Kc7 {[%emt 0:00:18]} 62. Nf3 {[%emt 0:00:19]} Rh1 {[%emt 0:00:31]} 63. Nd4 {[%emt 0:00:26]} Rb1+ {[%emt 0:00:09]} 64. Kc2 {[%emt 0:00:08]} Rh1 {[%emt 0:00:09]} 65. Kb2 {[%emt 0:00:13]} Rg1 {[%emt 0:00:07]} 66. Rc5+ {[%emt 0:00:13]} Kd7 {[%emt 0:00:47]} 67. Nf3 {[%emt 0:00:21]} Rh1 {[%emt 0:00:21]} 68. Ne5+ {[%emt 0:00:16]} Ke6 {[%emt 0:00:05]} 69. Nd3 {[%emt 0:00:17]} Kd7 {[%emt 0:00:34]} 70. Rg5 {[%emt 0:00:18]} Kc7 {[%emt 0:00:47]} 71. Rg7+ {[%emt 0:00:27]} Kb6 {[%emt 0:00:39]} 72. Rg6 {[%emt 0:00:12]} Kc6 {[%emt 0:00:30]} 73. Nf2 {[%emt 0:01:16]} Rh2 {[%emt 0:00:15]} 74. Rf6 {[%emt 0:00:04]} Kd5 {[%emt 0:01:05]} 75. Kb3 {[%emt 0:00:12]} Rg2 {[%emt 0:00:14]} 76. Nd3 {[%emt 0:00:58]} Rg1 {[%emt 0:01:24]} 77. Nb4+ {[%emt 0:00:27]} Ke5 {[%emt 0:00:25]} 78. Rh6 {[%emt 0:00:37]} Ne4 {[%emt 0:00:53]} 79. Nd3+ {[%emt 0:00:58]} Kd5 {[%emt 0:00:39]} 80. c4+ {[%emt 0:01:52]} Kd4 {[%emt 0:00:25]} 81. Nf4 {[%emt 0:00:07]} Nc5+ {[%emt 0:00:37]} 82. Kc2 {[%emt 0:00:14]} Kxc4 {[%emt 0:00:23]} 83. Rh4 {[%emt 0:00:22]} Kb5 {[%emt 0:00:09]} 84. Ne2 {[%emt 0:00:22]} 1/2-1/2

[Event "DEN-chT XtraCon 2018-19"]
[Site "Denmark"]
[Date "2018.10.27"]
[Round "1"]
[White "Hansen, Mads"]
[Black "Vesterli, Michael E."]
[Result "1-0"]
[ECO "B50"]
[WhiteElo "2385"]
[BlackElo "2169"]
[Annotator "NA"]
[PlyCount "63"]
[EventDate "2018.10.27"]
[EventType "team-tourn"]
[EventCountry "DEN"]
[SourceTitle "playchess.com"]
[Source "ChessBase"]
[SourceQuality "1"]
[TimeControl "40/5400+30:1800+30"]

1. e4 {[%emt 0:00:00]} c5 {[%emt 0:00:00]} 2. Nf3 {[%emt 0:00:00]} d6 {[%emt 0:00:00]} 3. Bc4 {[%emt 0:00:23]} e6 {[%emt 0:00:06]} 4. O-O {[%emt 0:01:01]} Nc6 {[%emt 0:01:37]} 5. Re1 {[%emt 0:01:42]} Be7 {[%emt 0:01:49]} 6. Bb3 {[%emt 0:02:48]} Nf6 {[%emt 0:02:56]} 7. c3 {[%emt 0:00:20]} O-O {[%emt 0:03:44]} 8. d3 {[%emt 0:04:25]} Qc7 {[%emt 0:04:21]} 9. Nbd2 {[%emt 0:01:41]} Ne5 {[%emt 0:09:21]} 10. Bc2 {[%emt 0:09:46]} Bd7 {[%emt 0:05:39]} 11. d4 {[%emt 0:12:34]} cxd4 {[%emt 0:00:47]} 12. cxd4 {[%emt 0:00:05]} Nxf3+ {[%emt 0:00:33]} 13. Nxf3 {[%emt 0:00:05]} Rac8 {[%emt 0:01:26]} 14. Bd3 {[%emt 0:02:30]} e5 {[%emt 0:04:28]} 15. h3 {[%emt 0:01:09]} Rfd8 {[%emt 0:10:23]} 16. Bd2 {[%emt 0:05:39]} d5 {[%emt 0:20:51]} 17. exd5 {[%emt 0:10:42]} e4 {[%emt 0:00:18]} 18. Bxe4 {[%emt 0:14:35]} Nxe4 {[%emt 0:00:28]} 19. Rxe4 {[%emt 0:00:04]} Bf5 {[%emt 0:01:40]} 20. Bf4 {[%emt 0:04:18]} Bd6 {[%emt 0:05:19]} 21. Bxd6 {[%emt 0:00:51]} Qxd6 {[%emt 0:00:17]} 22. Re5 {[%emt 0:01:14]} Bc2 {[%emt 0:00:15]} 23. Qe2 {[%emt 0:07:19]} f6 {[%emt 0:01:35]} 24. Re7 {[%emt 0:00:07]} Qxd5 {[%emt 0:01:09]} 25. Re1 {[%emt 0:00:28]} Ba4 {[%emt 0:02:37]} 26. Qe3 {[%emt 0:05:57]} Bc6 {[%emt 0:02:18]} 27. Qf4 {[%emt 0:02:15]} Qh5 {[%emt 0:09:19]} 28. Nh4 {[%emt 0:00:08]} Rd5 {[%emt 0:00:42]} 29. R1e3 {[%emt 0:06:23]} Qd1+ {[%emt 0:02:24]} 30. Kh2 {[%emt 0:00:01]} Qxd4 {[%emt 0:00:20]} 31. R3e4 {[%emt 0:03:16]} Qc5 {[%emt 0:01:17]} 32. Qg4 {[%emt 0:00:18]} 1-0

[Event "DEN-chT XtraCon 2018-19"]
[Site "Denmark"]
[Date "2018.10.27"]
[Round "1"]
[White "Jacobsen, Mikkel Manosri"]
[Black "Pedersen, Nicolai Vesterbaek"]
[Result "1-0"]
[ECO "E10"]
[WhiteElo "2314"]
[BlackElo "2396"]
[Annotator "NA"]
[PlyCount "58"]
[EventDate "2018.10.27"]
[EventType "team-tourn"]
[EventCountry "DEN"]
[SourceTitle "playchess.com"]
[Source "ChessBase"]
[SourceQuality "1"]
[TimeControl "40/5400+30:1800+30"]

1. d4 {[%emt 0:00:00]} Nf6 {[%emt 0:01:51]} 2. c4 {[%emt 0:00:00]} e6 {[%emt 0:00:44]} 3. Nf3 {[%emt 0:00:00]} d5 {[%emt 0:02:10]} 4. e3 {[%emt 0:01:46]} b6 {[%emt 0:13:05]} 5. b3 {[%emt 0:02:04]} Ba6 {[%emt 0:07:00]} 6. Nbd2 {[%emt 0:06:04]} c5 {[%emt 0:03:31]} 7. Bb2 {[%emt 0:05:37]} Be7 {[%emt 0:16:05]} 8. dxc5 {[%emt 0:04:32]} bxc5 {[%emt 0:05:29]} 9. Ne5 {[%emt 0:21:12]} Qb6 {[%emt 0:15:40]} 10. Qc2 {[%emt 0:03:45]} O-O {[%emt 0:02:02]} 11. Bd3 {[%emt 0:08:14]} Bb7 {[%emt 0:15:00]} 12. g4 {[%emt 0:11:45]} d4 {[%emt 0:05:35]} 13. Rg1 {[%emt 0:00:12]} Qd6 {[%emt 0:01:21]} 14. exd4 {[%emt 0:07:22]} cxd4 {[%emt 0:00:14]} 15. Ndf3 {[%emt 0:00:49]} Nc6 {[%emt 0:03:00]} 16. Nxc6 {[%emt 0:02:44]} Bxc6 {[%emt 0:00:10]} 17. Nxd4 {[%emt 0:00:16]} Qxh2 {[%emt 0:02:37]} 18. O-O-O {[%emt 0:05:12]} Qf4+ {[%emt 0:00:29]} 19. Kb1 {[%emt 0:00:31]} Be4 {[%emt 0:01:13]} 20. f3 {[%emt 0:07:30]} Bxd3 {[%emt 0:01:24]} 21. Rxd3 {[%emt 0:00:03]} Bc5 {[%emt 0:00:45]} 22. g5 {[%emt 0:01:37]} Nh5 {[%emt 0:00:50]} 23. Rh1 {[%emt 0:04:17]} Qxg5 {[%emt 0:00:19]} 24. f4 {[%emt 0:01:52]} Qg6 {[%emt 0:00:41]} 25. f5 {[%emt 0:03:11]} exf5 {[%emt 0:00:10]} 26. Nf3 {[%emt 0:00:10]} Nf4 {[%emt 0:01:03]} 27. Ne5 {[%emt 0:00:38]} Qg5 {[%emt 0:00:31]} 28. Qh2 {[%emt 0:01:08]} h6 {[%emt 0:00:30]} 29. Rg3 {[%emt 0:00:13]} Qf6 {[%emt 0:00:00]} 1-0

[Event "DEN-chT XtraCon 2018-19"]
[Site "Denmark"]
[Date "2018.10.27"]
[Round "1"]
[White "Laursen, Niels Norskov"]
[Black "Rozentalis, Eduardas"]
[Result "0-1"]
[ECO "C10"]
[WhiteElo "2304"]
[BlackElo "2522"]
[Annotator "RC"]
[PlyCount "72"]
[EventDate "2018.10.27"]
[EventType "team-tourn"]
[EventCountry "DEN"]
[SourceTitle "playchess.com"]
[Source "ChessBase"]
[SourceQuality "1"]
[TimeControl "40/5400+30:1800+30"]

1. e4 {[%emt 0:00:00]} e6 {[%emt 0:00:00]} 2. d4 {[%emt 0:00:00]} d5 {[%emt 0:00:00]} 3. Nc3 {[%emt 0:00:00]} Nc6 {[%emt 0:00:51]} 4. Nf3 {[%emt 0:04:16]} Nf6 {[%emt 0:00:36]} 5. Bg5 {[%emt 0:02:55]} Be7 {[%emt 0:00:44]} 6. e5 {[%emt 0:02:58]} Ne4 {[%emt 0:00:12]} 7. Bxe7 {[%emt 0:02:28]} Qxe7 {[%emt 0:00:14]} 8. Bd3 {[%emt 0:04:26]} Nxc3 {[%emt 0:03:19]} 9. bxc3 {[%emt 0:00:06]} f6 {[%emt 0:00:10]} 10. Bb5 {[%emt 0:11:30]} Bd7 {[%emt 0:01:09]} 11. Bxc6 {[%emt 0:01:34]} Bxc6 {[%emt 0:00:26]} 12. O-O {[%emt 0:00:46]} O-O {[%emt 0:02:19]} 13. Re1 {[%emt 0:02:16]} f5 {[%emt 0:06:36]} 14. Nd2 {[%emt 0:11:50]} f4 {[%emt 0:00:55]} 15. f3 {[%emt 0:07:28]} Rf5 {[%emt 0:01:18]} 16. g4 {[%emt 0:06:12]} fxg3 {[%emt 0:01:40]} 17. hxg3 {[%emt 0:00:05]} Raf8 {[%emt 0:01:08]} 18. Kg2 {[%emt 0:03:05]} Qg5 {[%emt 0:03:14]} 19. Qe2 {[%emt 0:02:43]} Ba4 {[%emt 0:08:31]} 20. Rac1 {[%emt 0:02:09]} a6 {[%emt 0:03:12]} 21. Qe3 {[%emt 0:03:28]} Qg6 {[%emt 0:00:53]} 22. Rh1 {[%emt 0:01:10]} Rg5 {[%emt 0:06:18]} 23. Rh3 {[%emt 0:00:38]} h6 {[%emt 0:02:07]} 24. Nb3 {[%emt 0:06:47]} Bb5 {[%emt 0:02:17]} 25. Nc5 {[%emt 0:02:12]} Rgf5 {[%emt 0:08:59]} 26. g4 {[%emt 0:02:10]} h5 {[%emt 0:04:26]} 27. Rg3 {[%emt 0:00:58]} h4 {[%emt 0:05:19]} 28. Rh3 {[%emt 0:01:51]} Rxf3 {[%emt 0:00:49]} 29. Qxf3 {[%emt 0:00:31]} Rxf3 {[%emt 0:00:07]} 30. Rxf3 {[%emt 0:01:24]} Qxg4+ {[%emt 0:00:58]} 31. Kf2 {[%emt 0:00:12]} h3 {[%emt 0:01:51]} 32. Rg1 {[%emt 0:02:16]} Qh4+ {[%emt 0:00:21]} 33. Ke3 {[%emt 0:00:47]} Qh6+ {[%emt 0:01:44]} 34. Kf2 {[%emt 0:01:12]} Qd2+ {[%emt 0:00:21]} 35. Kg3 {[%emt 0:00:11]} Be2 {[%emt 0:00:29]} 36. Rf2 {[%emt 0:00:40]} Qe3+ {[%emt 0:00:14]} 0-1

[Event "DEN-chT XtraCon 2018-19"]
[Site "Denmark"]
[Date "2018.10.27"]
[Round "1"]
[White "Bank, Pelle"]
[Black "Larsen, Steen Skovlund"]
[Result "1/2-1/2"]
[ECO "A45"]
[WhiteElo "2299"]
[BlackElo "2308"]
[Annotator "NA"]
[PlyCount "54"]
[EventDate "2018.10.27"]
[EventType "team-tourn"]
[EventCountry "DEN"]
[SourceTitle "playchess.com"]
[Source "ChessBase"]
[SourceQuality "1"]
[TimeControl "40/5400+30:1800+30"]

1. d4 {[%emt 0:00:00]} Nf6 {[%emt 0:00:30]} 2. Bg5 {[%emt 0:00:00]} e6 {[%emt 0:02:26]} 3. e4 {[%emt 0:00:17]} h6 {[%emt 0:00:14]} 4. Bxf6 {[%emt 0:00:04]} Qxf6 {[%emt 0:00:07]} 5. c3 {[%emt 0:00:03]} d6 {[%emt 0:03:55]} 6. Bd3 {[%emt 0:00:12]} g6 {[%emt 0:07:59]} 7. Ne2 {[%emt 0:00:13]} Bg7 {[%emt 0:01:24]} 8. O-O {[%emt 0:00:06]} e5 {[%emt 0:01:02]} 9. f4 {[%emt 0:00:05]} Qe7 {[%emt 0:00:24]} 10. f5 {[%emt 0:01:28]} Nd7 {[%emt 0:05:37]} 11. fxg6 {[%emt 0:01:16]} fxg6 {[%emt 0:00:22]} 12. Na3 {[%emt 0:00:33]} Nf6 {[%emt 0:07:42]} 13. Qb3 {[%emt 0:03:53]} c6 {[%emt 0:04:21]} 14. Nc4 {[%emt 0:03:06]} b5 {[%emt 0:30:53]} 15. Na5 {[%emt 0:08:58]} Bd7 {[%emt 0:03:34]} 16. a4 {[%emt 0:09:52]} a6 {[%emt 0:05:08]} 17. Kh1 {[%emt 0:41:40]} Rf8 {[%emt 0:03:41]} 18. d5 {[%emt 0:04:59]} cxd5 {[%emt 0:07:22]} 19. exd5 {[%emt 0:01:10]} e4 {[%emt 0:01:29]} 20. Nf4 {[%emt 0:08:20]} Ng4 {[%emt 0:06:41]} 21. Be2 {[%emt 0:12:45]} Qg5 {[%emt 0:02:42]} 22. Bxg4 {[%emt 0:00:16]} Rxf4 {[%emt 0:01:06]} 23. Bxd7+ {[%emt 0:00:04]} Kxd7 {[%emt 0:00:05]} 24. axb5 {[%emt 0:01:19]} Rxf1+ {[%emt 0:00:05]} 25. Rxf1 {[%emt 0:00:01]} Rf8 {[%emt 0:00:04]} 26. Qc4 {[%emt 0:00:44]} Qxd5 {[%emt 0:00:13]} 27. Qc6+ {[%emt 0:00:30]} Qxc6 {[%emt 0:00:14]} 1/2-1/2